bitfinex/quotes_BTCUSD_20230906
["timestamp","ask_amount","ask_price","bid_price","bid_amount"]
[1693994021280,0.0197,25775.0,25774.0,5.16888637]
[1693994021507,0.0197,25775.0,25774.0,5.55553164]
[1693994025336,0.0197,25775.0,25774.0,5.55517017]
[1693994030698,0.0197,25775.0,25774.0,5.1685249]
[1693994046259,0.0197,25775.0,25774.0,5.1170061]
[1693994048266,0.0197,25775.0,25774.0,3.51861943]
[1693994048267,0.10552285,25775.0,25774.0,3.51861943]
[1693994048463,0.10552285,25775.0,25774.0,3.21861943]
[1693994048857,0.10552285,25775.0,25774.0,3.17206027]
[1693994049058,0.10552285,25775.0,25774.0,3.26519533]
[1693994049888,0.10552285,25775.0,25774.0,2.80645102]
[1693994051032,0.10552285,25775.0,25774.0,2.66673011]
[1693994051464,0.22602285,25775.0,25774.0,0.84921848]
[1693994051647,0.22602285,25775.0,25774.0,0.07324348]
[1693994052601,0.22602285,25775.0,25774.0,0.84921848]
[1693994053268,0.22602285,25775.0,25774.0,0.07324348]
[1693994059761,0.22602285,25775.0,25774.0,0.84921848]
[1693994060459,0.22602285,25775.0,25774.0,0.07324348]
[1693994079917,1.00196785,25775.0,25774.0,0.07324348]
[1693994080753,1.00196785,25775.0,25774.0,1.19178086]
[1693994081355,1.00196785,25775.0,25774.0,0.07324348]
[1693994083932,1.77791285,25775.0,25774.0,0.07324348]
[1693994084140,1.00196785,25775.0,25774.0,0.07324348]
[1693994087001,1.77791285,25775.0,25774.0,0.07324348]
[1693994087984,2.468035,25775.0,25774.0,0.07324348]
[1693994088196,1.76934399,25775.0,25774.0,0.07324348]
[1693994089236,2.468035,25775.0,25774.0,0.07324348]
[1693994089639,2.53909575,25775.0,25774.0,0.07324348]
[1693994089860,1.76315075,25775.0,25774.0,0.07324348]
[1693994091757,1.69209,25775.0,25774.0,0.07324348]
[1693994091967,1.7795054,25775.0,25774.0,0.07324348]
[1693994093005,2.5554504,25775.0,25774.0,0.07324348]
[1693994097254,1.7795054,25775.0,25774.0,0.07324348]
[1693994099558,2.5554504,25775.0,25774.0,0.07324348]
[1693994100575,1.7795054,25775.0,25774.0,0.07324348]
[1693994100974,2.468035,25775.0,25774.0,0.07324348]
[1693994101629,2.85468027,25775.0,25774.0,0.07324348]
[1693994104357,2.87468027,25775.0,25774.0,0.07324348]
[1693994104559,2.95468027,25775.0,25774.0,0.07324348]
[1693994104786,3.02122027,25775.0,25774.0,0.07324348]
[1693994104960,3.02158027,25775.0,25774.0,0.07324348]
[1693994105251,3.02494027,25775.0,25774.0,0.07324348]
[1693994105427,3.02434027,25775.0,25774.0,0.04824348]
[1693994105630,3.02380027,25775.0,25774.0,0.04824348]
[1693994105767,3.02380027,25775.0,25774.0,0.02]
[1693994105768,3.02368027,25775.0,25774.0,0.02]
[1693994105974,3.02362027,25775.0,25774.0,0.02]
[1693994106168,3.02420027,25775.0,25774.0,0.0221759]
[1693994106427,3.02384027,25775.0,25774.0,0.0221759]
[1693994106630,1.552132,25771.0,25770.0,0.09313506]
[1693994106977,1.672632,25771.0,25770.0,0.09313506]
[1693994107608,1.672632,25771.0,25769.0,1.00898097]
[1693994107799,0.98735172,25771.0,25769.0,0.86926006]
[1693994107987,0.98735172,25771.0,25770.0,0.025]
[1693994108203,0.896566,25771.0,25770.0,0.025]
[1693994108640,0.896566,25771.0,25770.0,0.05]
[1693994109047,0.776066,25771.0,25770.0,0.025]
[1693994109260,0.776066,25771.0,25769.0,1.64538506]
[1693994109463,0.776066,25771.0,25769.0,0.89426006]
[1693994109668,0.776066,25771.0,25769.0,0.91926006]
[1693994109891,0.776066,25771.0,25769.0,0.89426006]
[1693994110114,0.776066,25771.0,25770.0,0.025]
[1693994110319,0.776066,25771.0,25770.0,0.05]
[1693994110528,0.84514443,25771.0,25770.0,0.025]
[1693994111763,0.84514443,25771.0,25769.0,0.86926006]
[1693994111917,0.84514443,25771.0,25769.0,0.89426006]
[1693994112119,0.84514443,25771.0,25769.0,0.801125]
[1693994112465,0.84514443,25771.0,25770.0,0.025]
[1693994112771,1.62121043,25771.0,25770.0,0.025]
[1693994113176,1.62121043,25771.0,25768.0,1.78513297]
[1693994113389,1.62121043,25771.0,25769.0,0.025]
[1693994113595,1.62121043,25771.0,25770.0,0.025]
[1693994114363,1.62121043,25771.0,25769.0,0.025]
[1693994114963,1.62121043,25771.0,25770.0,0.025]
[1693994115384,1.62121043,25771.0,25770.0,0.04719398]
[1693994115559,1.62121043,25771.0,25770.0,0.02219398]
[1693994115963,1.62121043,25771.0,25769.0,0.05]
[1693994116167,1.62121043,25771.0,25768.0,2.42154806]
[1693994116378,1.62121043,25771.0,25770.0,0.025]
[1693994116586,1.62121043,25771.0,25770.0,0.05]
[1693994116762,0.84514443,25771.0,25770.0,0.05]
[1693994118359,0.84514443,25771.0,25770.0,0.025]
[1693994119880,0.06907843,25771.0,25770.0,0.025]
[1693994120242,0.06907843,25771.0,25770.0,0.05]
[1693994122849,0.06907843,25771.0,25770.0,0.826096]
[1693994123991,0.06907843,25771.0,25770.0,0.05]
[1693994124614,0.06907843,25771.0,25770.0,0.826096]
[1693994129699,0.06907843,25771.0,25770.0,1.94478161]
[1693994130316,0.06907843,25771.0,25770.0,1.96697559]
[1693994131399,0.06907843,25771.0,25770.0,2.74307159]
[1693994135698,1.26685583,25774.0,25770.0,3.51916759]
[1693994135898,0.08156438,25773.0,25770.0,2.73940638]
[1693994136145,0.08156438,25773.0,25770.0,2.58474827]
[1693994136779,0.08156438,25773.0,25770.0,2.55974827]
[1693994136971,0.08156438,25773.0,25771.0,1.1186411]
[1693994137121,0.08156438,25773.0,25771.0,2.6707491]
[1693994137339,0.08156438,25773.0,25771.0,1.552108]
[1693994139007,0.08156438,25773.0,25771.0,1.577108]
[1693994141100,0.08156438,25773.0,25771.0,1.597108]
[1693994142828,0.08156438,25773.0,25771.0,2.373174]
[1693994145452,0.08156438,25773.0,25772.0,0.02218494]
[1693994146313,0.08156438,25773.0,25772.0,0.79822094]
[1693994146713,0.08156438,25773.0,25772.0,0.81422094]
[1693994147437,0.08156438,25773.0,25772.0,0.82522094]
[1693994157126,1.20286689,25775.0,25772.0,2.73434766]
[1693994157127,1.08236689,25775.0,25772.0,2.73434766]
[1693994157345,0.06891889,25775.0,25773.0,0.323571]
[1693994157648,0.06891889,25775.0,25774.0,3.2244]
[1693994157894,0.06891889,25775.0,25774.0,2.448425]
[1693994157895,0.0197,25775.0,25774.0,2.448425]
[1693994158511,0.0197,25775.0,25774.0,2.327925]
[1693994159291,0.0207,25775.0,25774.0,2.327925]
[1693994159911,0.0227,25775.0,25774.0,2.37035227]
[1693994160123,0.0227,25775.0,25774.0,2.39252817]
[1693994160763,0.0207,25775.0,25774.0,2.39252817]
[1693994160970,0.0207,25775.0,25774.0,2.51602817]
[1693994161390,0.0197,25775.0,25774.0,2.51302817]
[1693994161600,0.0197,25775.0,25774.0,2.52002817]
[1693994162956,0.0197,25775.0,25774.0,2.7462708]
[1693994163169,0.0197,25775.0,25774.0,2.7492708]
[1693994165807,0.0197,25775.0,25774.0,3.5252458]
[1693994166239,0.0197,25775.0,25774.0,3.6383358]
[1693994167837,0.0197,25775.0,25774.0,4.75678772]
[1693994168152,0.0197,25775.0,25774.0,3.6383358]
[1693994171081,0.0197,25775.0,25774.0,3.9825538]
[1693994171279,0.0197,25775.0,25774.0,4.15493292]
[1693994179521,0.0197,25775.0,25774.0,4.24806798]
[1693994180337,0.0197,25775.0,25774.0,6.03208156]
[1693994180679,0.0197,25775.0,25774.0,6.18685024]
[1693994181014,0.0197,25775.0,25774.0,6.04598251]
[1693994181217,0.0197,25775.0,25774.0,6.04298251]
[1693994181417,0.0197,25775.0,25774.0,6.03598251]
[1693994181617,0.0197,25775.0,25774.0,6.06098251]
[1693994181820,0.0197,25775.0,25774.0,6.08598251]
[1693994182019,0.0197,25775.0,25774.0,6.03598251]
[1693994182249,0.0197,25775.0,25774.0,6.06098251]
[1693994182450,0.0197,25775.0,25774.0,6.08598251]
[1693994183234,0.0197,25775.0,25774.0,6.08591899]
[1693994184582,0.0197,25775.0,25774.0,6.31863573]
[1693994185711,0.04915087,25779.0,25775.0,0.16]
[1693994185917,0.04915087,25779.0,25778.0,0.1205]
[1693994186134,0.04915087,25779.0,25778.0,1.97221]
[1693994186339,0.0198,25782.0,25778.0,1.99436782]
[1693994186555,0.0198,25782.0,25779.0,0.1205]
[1693994186768,0.0198,25782.0,25780.0,3.10318]
[1693994187019,0.0198,25782.0,25781.0,0.1205]
[1693994187227,0.0198,25782.0,25781.0,2.447795]
[1693994188106,0.10215867,25782.0,25781.0,2.447795]
[1693994188725,0.10215867,25782.0,25781.0,2.448795]
[1693994190241,0.10215867,25782.0,25781.0,2.47093926]
[1693994191872,0.10215867,25782.0,25781.0,2.35043926]
[1693994195974,0.10215867,25782.0,25781.0,2.234711]
[1693994196179,0.10215867,25782.0,25781.0,2.25685526]
[1693994197353,0.10215867,25782.0,25781.0,1.48109026]
[1693994198177,0.10215867,25782.0,25781.0,1.57367426]
[1693994201528,0.10215867,25782.0,25781.0,1.37969473]
[1693994201732,0.10215867,25782.0,25781.0,1.40053639]
[1693994202926,0.10215867,25782.0,25781.0,1.57237166]
[1693994203365,0.10215867,25782.0,25781.0,0.79660666]
[1693994206188,0.10215867,25782.0,25781.0,0.60262713]
[1693994206391,0.10215867,25782.0,25781.0,0.62346879]
[1693994207000,0.10215867,25782.0,25781.0,1.39923379]
[1693994207624,0.10215867,25782.0,25781.0,1.57237166]
[1693994208890,0.0198,25782.0,25781.0,1.37839213]
[1693994209089,0.0198,25782.0,25781.0,1.39800781]
[1693994210953,0.0198,25782.0,25781.0,1.20402828]
[1693994211159,0.0198,25782.0,25781.0,1.57114568]
[1693994212352,0.0198,25782.0,25781.0,0.01961568]
[1693994213626,0.0198,25782.0,25781.0,0.775765]
[1693994213923,0.0198,25782.0,25781.0,0.7953228]
[1693994216470,0.0198,25782.0,25781.0,0.0195578]
[1693994217350,0.0198,25782.0,25781.0,0.01888722]
[1693994221263,0.795535,25782.0,25781.0,0.01888722]
[1693994221458,2.467505,25782.0,25781.0,0.01888722]
[1693994221818,2.467505,25782.0,25777.0,0.77588]
[1693994222024,0.1205,25781.0,25777.0,1.551756]
[1693994222225,0.775801,25780.0,25777.0,1.551756]
[1693994222630,1.551602,25780.0,25777.0,1.551756]
[1693994222831,1.551602,25780.0,25777.0,0.775876]
[1693994223036,0.1205,25778.0,25777.0,0.024]
[1693994223358,0.1205,25778.0,25777.0,0.019]
[1693994223359,1.67221,25778.0,25777.0,0.019]
[1693994223715,0.896355,25778.0,25777.0,0.024]
[1693994223912,0.896355,25778.0,25775.0,0.775937]
[1693994224126,0.896355,25778.0,25777.0,0.019]
[1693994224981,0.896355,25778.0,25777.0,0.03733007]
[1693994225189,1.67221,25778.0,25777.0,0.01833007]
[1693994225389,1.67421,25778.0,25777.0,0.03933007]
[1693994225628,1.67421,25778.0,25777.0,0.021]
[1693994226006,1.67421,25778.0,25775.0,1.37885636]
[1693994226335,1.67421,25778.0,25775.0,1.551862]
[1693994226767,1.67421,25778.0,25775.0,1.576862]
[1693994228299,1.67221,25778.0,25775.0,1.576862]
[1693994228729,1.67421,25778.0,25775.0,1.600862]
[1693994233048,0.1205,25777.0,25775.0,1.600862]
[1693994233226,0.1205,25777.0,25775.0,0.824929]
[1693994233853,0.1205,25777.0,25775.0,0.799929]
[1693994234257,0.1205,25777.0,25775.0,0.824929]
[1693994235078,0.1205,25777.0,25776.0,0.01775457]
[1693994235604,0.898385,25777.0,25776.0,0.01775457]
[1693994236121,0.97897513,25777.0,25776.0,0.01775457]
[1693994236354,0.97897513,25777.0,25776.0,0.04275457]
[1693994236355,2.448155,25777.0,25776.0,0.04275457]
[1693994236535,2.450155,25777.0,25776.0,0.049]
[1693994241434,2.83680027,25777.0,25776.0,0.049]
[1693994241634,2.91680027,25777.0,25776.0,0.049]
[1693994242274,2.91480027,25777.0,25776.0,0.025]
[1693994242506,0.1205,25776.0,25770.0,1.75412428]
[1693994242750,0.1205,25776.0,25770.0,0.09285125]
[1693994242751,3.103858,25775.0,25770.0,0.09285125]
[1693994243003,0.1205,25771.0,25770.0,0.86893725]
[1693994243252,0.1205,25772.0,25770.0,0.86893725]
[1693994243468,0.896536,25772.0,25770.0,0.86893725]
[1693994243645,0.896536,25772.0,25770.0,0.09285125]
[1693994243904,0.896536,25772.0,25769.0,1.78435012]
[1693994243905,0.1205,25772.0,25769.0,1.78435012]
[1693994244132,0.896547,25772.0,25770.0,0.776087]
[1693994244342,0.898547,25772.0,25770.0,0.801087]
[1693994244763,0.1225,25772.0,25770.0,0.801087]
[1693994244982,0.1225,25772.0,25770.0,1.577183]
[1693994245181,0.1225,25772.0,25770.0,1.46295307]
[1693994245388,0.898536,25772.0,25770.0,0.68685707]
[1693994245589,0.896539,25772.0,25769.0,1.64507325]
[1693994245790,1.672578,25772.0,25769.0,1.64507325]
[1693994245922,1.674578,25772.0,25769.0,1.03325312]
[1693994246123,1.676578,25772.0,25770.0,0.024]
[1693994246326,1.672578,25772.0,25769.0,1.64510125]
[1693994246548,1.672578,25772.0,25769.0,1.78437812]
[1693994246752,1.676578,25772.0,25770.0,0.025]
[1693994247154,1.674578,25772.0,25769.0,1.66910125]
[1693994247381,2.450617,25772.0,25769.0,0.11685125]
[1693994247584,0.1205,25770.0,25769.0,0.049]
[1693994247744,1.672692,25770.0,25769.0,0.14185125]
[1693994247969,1.672692,25770.0,25769.0,0.11785125]
[1693994248170,1.672692,25770.0,25769.0,0.025]
[1693994248470,1.672692,25770.0,25769.0,0.11785125]
[1693994249020,1.674692,25770.0,25769.0,0.11685125]
[1693994249428,1.676692,25770.0,25769.0,0.14185125]
[1693994249864,1.674692,25770.0,25769.0,0.11685125]
[1693994250280,1.676692,25770.0,25769.0,0.04492697]
[1693994250458,2.452788,25770.0,25769.0,0.04492697]
[1693994251288,2.450788,25770.0,25769.0,0.04231869]
[1693994251796,2.453788,25770.0,25769.0,0.02431869]
[1693994251968,2.448788,25770.0,25769.0,0.01731869]
[1693994252177,2.450788,25770.0,25769.0,0.04231869]
[1693994252382,2.451788,25770.0,25769.0,0.04931869]
[1693994253186,2.449788,25770.0,25769.0,0.02431869]
[1693994253511,2.450788,25770.0,25769.0,0.03231869]
[1693994254270,2.450788,25770.0,25769.0,0.01882955]
[1693994254668,2.450788,25770.0,25767.0,0.16321383]
[1693994254891,0.1205,25769.0,25767.0,0.16321383]
[1693994255087,0.776156,25768.0,25766.0,0.23212811]
[1693994255316,0.776156,25768.0,25766.0,0.69099055]
[1693994255469,0.776156,25768.0,25766.0,0.53824994]
[1693994256078,0.776156,25768.0,25767.0,0.001]
[1693994256283,0.776156,25768.0,25767.0,0.45886244]
[1693994256483,0.776156,25768.0,25766.0,0.53824994]
[1693994256688,0.778156,25768.0,25767.0,0.45886244]
[1693994258116,0.781156,25768.0,25767.0,0.45886244]
[1693994258317,0.779156,25768.0,25767.0,0.45886244]
[1693994258553,0.776156,25768.0,25767.0,0.45886244]
[1693994258817,0.779156,25768.0,25767.0,0.45986244]
[1693994258942,0.779156,25768.0,25767.0,0.34561518]
[1693994259145,0.781156,25768.0,25767.0,0.36961518]
[1693994261988,0.781156,25768.0,25767.0,0.38740756]
[1693994262200,0.781156,25768.0,25767.0,0.57288891]
[1693994262640,1.557312,25768.0,25767.0,0.46014403]
[1693994262838,1.557312,25768.0,25767.0,0.27466268]
[1693994263038,1.557312,25768.0,25767.0,0.46015351]
[1693994263565,1.557312,25768.0,25767.0,0.27466268]
[1693994264173,0.781156,25768.0,25767.0,0.27466268]
[1693994265238,1.557312,25768.0,25767.0,0.27466268]
[1693994267084,2.84061327,25768.0,25767.0,0.1819581]
[1693994267286,2.84061327,25768.0,25767.0,0.13558322]
[1693994268094,2.84061327,25768.0,25767.0,0.27474894]
[1693994268295,2.84061327,25768.0,25767.0,0.13558322]
[1693994270683,2.84061327,25768.0,25767.0,0.27474894]
[1693994271495,2.84061327,25768.0,25767.0,0.13558322]
[1693994271844,2.84061327,25768.0,25767.0,0.27474894]
[1693994272490,2.84061327,25768.0,25767.0,0.13558322]
[1693994272732,2.84061327,25768.0,25767.0,0.27474894]
[1693994273629,2.84061327,25768.0,25767.0,0.13558322]
[1693994273835,2.84061327,25768.0,25767.0,0.27474894]
[1693994275297,2.84061327,25768.0,25767.0,0.13558322]
[1693994282130,2.86061327,25768.0,25767.0,0.13558322]
[1693994282736,3.19297478,25767.0,25766.0,0.13916572]
[1693994282937,3.64825252,25767.0,25766.0,0.13916572]
[1693994283161,3.64825252,25767.0,25766.0,0.1855543]
[1693994284002,3.65025252,25767.0,25766.0,0.2005543]
[1693994284177,3.65025252,25767.0,25766.0,0.65946333]
[1693994285002,3.58462005,25767.0,25766.0,0.65946333]
[1693994286736,3.58462005,25767.0,25766.0,0.89133363]
[1693994288704,3.58462005,25767.0,25766.0,0.65946333]
[1693994290542,3.58462005,25767.0,25766.0,0.6762664]
[1693994291671,0.86941678,25767.0,25766.0,1.4524824]
[1693994291878,0.93790464,25767.0,25766.0,0.6762664]
[1693994293772,0.93790464,25767.0,25766.0,0.81561071]
[1693994294735,0.93790464,25767.0,25766.0,0.63005641]
[1693994296747,0.93790464,25767.0,25766.0,0.26407907]
[1693994297779,0.93790464,25767.0,25766.0,0.90095076]
[1693994297975,0.86941678,25767.0,25766.0,0.90095076]
[1693994298961,0.86941678,25767.0,25766.0,0.12473476]
[1693994299605,0.86941678,25767.0,25766.0,0.90095076]
[1693994300277,0.94433036,25767.0,25766.0,0.80801907]
[1693994300601,0.86941678,25767.0,25766.0,0.80801907]
[1693994300805,0.95687724,25767.0,25766.0,0.80801907]
[1693994301006,0.86941678,25767.0,25766.0,0.80801907]
[1693994302207,0.94480545,25767.0,25766.0,0.80801907]
[1693994302763,0.86941678,25767.0,25766.0,0.80801907]
[1693994303221,0.95331127,25767.0,25766.0,0.80801907]
[1693994304419,0.86941678,25767.0,25766.0,0.80801907]
[1693994305237,0.86941678,25767.0,25766.0,0.03180307]
[1693994305850,0.95016367,25767.0,25766.0,0.12473476]
[1693994311116,0.95016367,25767.0,25766.0,0.90095076]
[1693994315020,0.95016367,25767.0,25766.0,0.12473476]
[1693994315177,1.72634967,25767.0,25766.0,0.12473476]
[1693994316425,0.95016367,25767.0,25766.0,0.12473476]
[1693994321678,0.95016367,25767.0,25766.0,0.26407907]
[1693994321908,0.95016367,25767.0,25766.0,1.04029507]
[1693994322253,1.72634967,25767.0,25766.0,0.26407907]
[1693994324011,1.72434967,25767.0,25766.0,0.24907907]
[1693994324207,1.72134967,25767.0,25766.0,0.24907907]
[1693994324437,1.72334967,25767.0,25766.0,0.26307907]
[1693994324628,1.72634967,25767.0,25766.0,0.26307907]
[1693994324954,1.72434967,25767.0,25766.0,0.24907907]
[1693994325882,1.72434967,25767.0,25766.0,0.70795752]
[1693994326719,1.72634967,25767.0,25766.0,0.72195752]
[1693994326896,1.72634967,25767.0,25766.0,0.26307907]
[1693994328083,1.72634967,25767.0,25766.0,0.72195862]
[1693994330071,1.72634967,25767.0,25766.0,1.84080451]
[1693994330423,1.72634967,25767.0,25766.0,1.84080438]
[1693994330630,1.72634967,25767.0,25766.0,0.72195862]
[1693994331234,1.72634967,25767.0,25766.0,0.26307907]
[1693994332263,1.72634967,25767.0,25766.0,0.72195932]
[1693994334266,0.95016367,25767.0,25766.0,0.72195932]
[1693994337679,1.72634967,25767.0,25766.0,0.72195932]
[1693994338380,1.72634967,25767.0,25766.0,0.62902763]
[1693994339149,2.50253567,25767.0,25766.0,0.62902763]
[1693994339544,2.42178878,25767.0,25766.0,0.62902763]
[1693994339790,2.42178878,25767.0,25766.0,0.72206575]
[1693994340425,2.50489373,25767.0,25766.0,0.72206575]
[1693994343368,2.50489373,25767.0,25766.0,0.62902763]
[1693994343765,2.50589373,25767.0,25766.0,0.62902763]
[1693994348954,2.50589373,25767.0,25766.0,0.03080307]
[1693994349152,2.50589373,25767.0,25766.0,0.17037944]
[1693994349402,2.50589373,25767.0,25766.0,0.62925997]
[1693994350198,2.42278878,25767.0,25766.0,0.62925997]
[1693994352232,2.42278878,25767.0,25766.0,0.03080307]
[1693994352410,2.49914145,25767.0,25766.0,0.03080307]
[1693994359196,2.49914145,25767.0,25764.0,1.71947243]
[1693994359414,0.07191505,25766.0,25764.0,1.71947243]
[1693994360837,0.07391505,25766.0,25764.0,1.71947243]
[1693994361197,0.07391505,25766.0,25764.0,1.57989606]
[1693994361397,0.07391505,25766.0,25764.0,1.71947243]
[1693994361642,0.07691505,25766.0,25764.0,1.72047243]
[1693994361812,0.07691505,25766.0,25764.0,1.58089606]
[1693994364037,0.09097205,25765.0,25764.0,1.58089606]
[1693994364245,0.09097205,25765.0,25764.0,1.553528]
[1693994365017,0.09097205,25765.0,25764.0,1.552528]
[1693994365396,0.09397205,25765.0,25764.0,1.553528]
[1693994366435,0.09597205,25765.0,25764.0,1.553528]
[1693994366837,0.09597205,25765.0,25764.0,1.56955849]
[1693994372015,0.09497205,25765.0,25764.0,1.56955849]
[1693994376133,0.09497205,25765.0,25764.0,2.68848074]
[1693994376339,0.09497205,25765.0,25764.0,2.78146956]
[1693994376990,0.09497205,25765.0,25764.0,1.56955849]
[1693994377192,0.09497205,25765.0,25764.0,2.68847073]
[1693994377887,0.09497205,25765.0,25764.0,1.56955849]
[1693994379497,0.005,25765.0,25764.0,0.79328949]
[1693994379696,0.005,25765.0,25764.0,0.01703049]
[1693994380081,0.781246,25765.0,25764.0,0.01703049]
[1693994380831,1.557492,25765.0,25764.0,0.01703049]
[1693994382390,1.554492,25765.0,25764.0,0.01603049]
[1693994382595,1.62885915,25765.0,25764.0,0.01703049]
[1693994383020,1.62585915,25765.0,25764.0,0.01603049]
[1693994383453,1.62585915,25765.0,25762.0,1.79712801]
[1693994383655,1.552492,25765.0,25764.0,0.01731826]
[1693994384070,2.330738,25765.0,25764.0,0.01731826]
[1693994384285,2.333738,25765.0,25764.0,0.01831826]
[1693994384504,2.40828415,25765.0,25764.0,0.001]
[1693994384903,2.41028415,25765.0,25764.0,0.001]
[1693994385125,2.40828415,25765.0,25764.0,0.01831826]
[1693994385318,2.331738,25765.0,25764.0,0.01831826]
[1693994385488,2.334738,25765.0,25764.0,0.01831826]
[1693994386696,2.4210004,25765.0,25764.0,0.01831826]
[1693994387275,2.334738,25765.0,25764.0,0.01831826]
[1693994389291,2.42595195,25765.0,25764.0,0.01831826]
[1693994394550,2.334738,25765.0,25764.0,0.01831826]
[1693994394950,1.63002298,25765.0,25764.0,0.01831826]
[1693994395146,1.62702298,25765.0,25764.0,0.01731826]
[1693994395651,1.62402298,25765.0,25762.0,1.78521119]
[1693994396823,1.62602298,25765.0,25764.0,0.001]
[1693994397210,1.62902298,25765.0,25764.0,0.001]
[1693994397589,1.62602298,25765.0,25764.0,0.001]
[1693994397796,1.62602298,25765.0,25762.0,1.78515598]
[1693994397989,1.62902298,25765.0,25762.0,1.78615598]
[1693994398194,1.62702298,25765.0,25762.0,1.64664999]
[1693994398522,1.62702298,25765.0,25762.0,1.64564999]
[1693994398794,1.62402298,25765.0,25762.0,1.64564999]
[1693994399223,1.62602298,25765.0,25762.0,1.64564999]
[1693994399765,1.62802298,25765.0,25764.0,0.001]
[1693994400186,2.332738,25765.0,25764.0,0.001]
[1693994400367,0.08859873,25764.0,25763.0,0.0163285]
[1693994400616,2.804072,25764.0,25763.0,0.0163285]
[1693994401224,2.80320288,25764.0,25763.0,0.0163285]
[1693994401869,2.80620288,25764.0,25763.0,0.0163285]
[1693994402048,2.02992688,25764.0,25763.0,0.0163285]
[1693994402284,1.94219727,25764.0,25763.0,0.0163285]
[1693994402466,1.23636491,25764.0,25763.0,0.0163285]
[1693994403076,0.46008891,25764.0,25763.0,0.0163285]
[1693994403284,0.07644364,25764.0,25763.0,1.47342773]
[1693994403489,0.07644364,25764.0,25763.0,2.24973473]
[1693994403490,0.006,25764.0,25763.0,2.24973473]
[1693994404125,0.07699639,25764.0,25763.0,2.24973473]
[1693994406056,0.006,25764.0,25763.0,3.46174064]
[1693994408988,0.006,25764.0,25763.0,3.36873665]
[1693994409195,0.07983832,25764.0,25763.0,3.36873665]
[1693994410352,0.07983832,25764.0,25763.0,3.36869492]
[1693994414195,0.006,25764.0,25763.0,3.36869492]
[1693994418704,0.006,25764.0,25763.0,3.46169891]
[1693994419304,0.006,25764.0,25763.0,2.68539191]
[1693994423116,0.0776809,25764.0,25763.0,2.68539191]
[1693994423315,0.0776809,25764.0,25763.0,1.90908491]
[1693994423520,0.8539569,25764.0,25763.0,1.21296418]
[1693994425913,0.0776809,25764.0,25763.0,1.21296418]
[1693994426083,0.0776809,25764.0,25763.0,1.98927118]
[1693994426447,0.0776809,25764.0,25763.0,1.21296418]
[1693994428358,0.8539569,25764.0,25763.0,1.21296418]
[1693994430875,0.0776809,25764.0,25763.0,1.21296418]
[1693994431081,0.8539569,25764.0,25763.0,1.21296418]
[1693994432061,1.6302329,25764.0,25763.0,1.21296418]
[1693994432461,0.8539569,25764.0,25763.0,1.21296418]
[1693994432867,0.8539569,25764.0,25763.0,0.09400399]
[1693994433077,0.8539569,25764.0,25763.0,1.21297185]
[1693994435765,0.0776809,25764.0,25763.0,1.21297185]
[1693994436328,0.8539569,25764.0,25763.0,1.21297185]
[1693994440687,0.0776809,25764.0,25763.0,1.21297185]
[1693994440889,0.0776809,25764.0,25763.0,1.98927885]
[1693994444089,0.0776809,25764.0,25763.0,1.21297185]
[1693994444514,0.0776809,25764.0,25763.0,1.98927885]
[1693994444871,0.0776809,25764.0,25763.0,1.21297185]
[1693994445442,0.8539569,25764.0,25763.0,1.21297185]
[1693994448595,0.0776809,25764.0,25763.0,1.21297185]
[1693994448806,0.8539569,25764.0,25763.0,1.21297185]
[1693994449373,1.6302329,25764.0,25763.0,1.21297185]
[1693994449576,2.79315417,25764.0,25763.0,1.21297185]
[1693994449731,2.79315417,25764.0,25763.0,0.09400399]
[1693994453415,2.79315417,25764.0,25763.0,0.001]
[1693994460161,2.72147327,25764.0,25763.0,0.001]
[1693994460291,2.796754,25764.0,25763.0,0.001]
[1693994462026,2.816754,25764.0,25763.0,0.001]
[1693994462408,2.74147327,25764.0,25760.0,0.16289163]
[1693994462618,0.38664527,25763.0,25760.0,0.16289163]
[1693994462746,2.329011,25762.0,25760.0,0.16289163]
[1693994462947,2.71565627,25762.0,25760.0,0.16289163]
[1693994463353,2.71565627,25762.0,25760.0,0.0931003]
[1693994464117,2.71765627,25762.0,25760.0,0.0931003]
[1693994464552,2.71965627,25762.0,25759.0,0.0931003]
[1693994465506,2.71765627,25762.0,25759.0,0.0931003]
[1693994465911,2.71765627,25762.0,25759.0,0.12489732]
[1693994466766,0.07466529,25761.0,25759.0,0.12489732]
[1693994466975,2.01407056,25761.0,25759.0,0.12489732]
[1693994467801,2.01607056,25761.0,25759.0,0.12489732]
[1693994467983,2.01807056,25761.0,25759.0,0.90132232]
[1693994468180,1.24168556,25761.0,25759.0,1.58464902]
[1693994468454,1.24168556,25761.0,25759.0,1.67774932]
[1693994468658,0.46531056,25761.0,25759.0,1.67774932]
[1693994470078,1.24168156,25761.0,25759.0,1.67774932]
[1693994470452,0.46531056,25761.0,25759.0,1.67774932]
[1693994471040,1.24168056,25761.0,25759.0,1.67774932]
[1693994471288,1.24168056,25761.0,25759.0,0.90132232]
[1693994472197,2.01805056,25761.0,25759.0,0.12489732]
[1693994478083,2.01805056,25761.0,25759.0,0.90132332]
[1693994482343,2.01805056,25761.0,25760.0,1.11907195]
[1693994483148,2.01605056,25761.0,25760.0,1.11907195]
[1693994483795,2.01805056,25761.0,25760.0,1.11907195]
[1693994483996,2.01605056,25761.0,25760.0,1.11907195]
[1693994485052,2.01805056,25761.0,25760.0,1.11907195]
[1693994485474,2.01805056,25761.0,25759.0,0.12489732]
[1693994485687,2.01805056,25761.0,25759.0,0.03179702]
[1693994486066,2.01805056,25761.0,25758.0,2.59990616]
[1693994486384,2.01805056,25761.0,25759.0,1.11912404]
[1693994486585,2.01605056,25761.0,25759.0,1.11912404]
[1693994486818,2.01605056,25761.0,25759.0,1.31053409]
[1693994486819,2.01805056,25761.0,25759.0,1.31053409]
[1693994487023,2.01605056,25761.0,25759.0,0.19141005]
[1693994487443,2.01805056,25761.0,25759.0,0.19141005]
[1693994487844,2.01605056,25761.0,25759.0,0.19141005]
[1693994489201,2.01805056,25761.0,25759.0,0.19141005]
[1693994489410,2.01605056,25761.0,25759.0,0.19141005]
[1693994489617,2.01805056,25761.0,25759.0,0.19141005]
[1693994490022,2.79442056,25761.0,25759.0,0.19141005]
[1693994490427,2.79442056,25761.0,25758.0,0.12473316]
[1693994490626,2.79442056,25761.0,25759.0,1.11912657]
[1693994491350,2.79242056,25761.0,25759.0,1.11912657]
[1693994491551,2.79442056,25761.0,25759.0,1.11912657]
[1693994492148,2.79242056,25761.0,25759.0,1.11912657]
[1693994493739,2.79442056,25761.0,25759.0,1.11912657]
[1693994497881,2.79442056,25761.0,25760.0,0.01505515]
[1693994498327,2.79442056,25761.0,25758.0,0.19250691]